{"text_format":"1","workbook":"xlsx","n_sheets":2,"sheets":["Colocar fórmula","Tabela BD - Procurar"],"not_rendered":{"charts":0,"images":0,"macros":0,"external_links":0,"defined_names":0,"comments":0,"pivot_tables":0},"unopened":[],"bounds":{"document_bytes":16777216,"sheet_cells":100000,"rows_first":2000,"rows_last":500,"rows_between":2000,"halvings":0,"cell_chars":16384,"cell_head_chars":4096},"cells_cut":0,"cells_raw":0,"read":"whole","date_system":"1900"}

{"sheet":"Colocar fórmula","index":0,"n_rows":15,"n_cols":5,"rows_kept":15,"cut":false,"hidden":false,"merged":[]}
["QTD","MATERIAL","Qtd",null,"A solução pretenda é esta:"]
[{"$f":"ROW(A1)","v":1},"pão",{"$f":"OFFSET('Tabela BD - Procurar'!$A$1,MATCH(B2,'Tabela BD - Procurar'!$A$2:$A$7,0),A2)","v":"centeio"},null,"centeio"]
[{"$f":"IF(B2=B3,A2+1,1)","v":2},"pão",{"$f":"OFFSET('Tabela BD - Procurar'!$A$1,MATCH(B3,'Tabela BD - Procurar'!$A$2:$A$7,0),A3)","v":"arroz"},null,"arroz"]
[{"$f":"IF(B3=B4,A3+1,1)","v":3},"pão",{"$f":"OFFSET('Tabela BD - Procurar'!$A$1,MATCH(B4,'Tabela BD - Procurar'!$A$2:$A$7,0),A4)","v":"trigo"},null,"trigo"]
[4,"pão",{"$f":"OFFSET('Tabela BD - Procurar'!$A$1,MATCH(B5,'Tabela BD - Procurar'!$A$2:$A$7,0),A5)","v":"agua"},null,"agua"]
[1,"massa",{"$f":"OFFSET('Tabela BD - Procurar'!$A$1,MATCH(B6,'Tabela BD - Procurar'!$A$2:$A$7,0),A6)","v":"esparguete"},null,"esparguete"]
[2,"massa",{"$f":"OFFSET('Tabela BD - Procurar'!$A$1,MATCH(B7,'Tabela BD - Procurar'!$A$2:$A$7,0),A7)","v":"rolo"},null,"rolo"]
[3,"massa",{"$f":"OFFSET('Tabela BD - Procurar'!$A$1,MATCH(B8,'Tabela BD - Procurar'!$A$2:$A$7,0),A8)","v":"cubos"},null,"cubos"]
[4,"massa",{"$f":"OFFSET('Tabela BD - Procurar'!$A$1,MATCH(B9,'Tabela BD - Procurar'!$A$2:$A$7,0),A9)","v":"pevide"},null,"pevide"]
[5,"massa",{"$f":"OFFSET('Tabela BD - Procurar'!$A$1,MATCH(B10,'Tabela BD - Procurar'!$A$2:$A$7,0),A10)","v":"pequena"},null,"pequena"]
[1,"arroz",{"$f":"OFFSET('Tabela BD - Procurar'!$A$1,MATCH(B11,'Tabela BD - Procurar'!$A$2:$A$7,0),A11)","v":"cigala"},null,"cigala"]
[1,"fermento",{"$f":"OFFSET('Tabela BD - Procurar'!$A$1,MATCH(B12,'Tabela BD - Procurar'!$A$2:$A$7,0),A12)","v":"neve"},null,"neve"]
[2,"fermento",{"$f":"OFFSET('Tabela BD - Procurar'!$A$1,MATCH(B13,'Tabela BD - Procurar'!$A$2:$A$7,0),A13)","v":"trigo"},null,"trigo"]
[1,"ovos",{"$f":"OFFSET('Tabela BD - Procurar'!$A$1,MATCH(B14,'Tabela BD - Procurar'!$A$2:$A$7,0),A14)","v":"galinha"},null,"galinha"]
[1,"colher",{"$f":"OFFSET('Tabela BD - Procurar'!$A$1,MATCH(B15,'Tabela BD - Procurar'!$A$2:$A$7,0),A15)","v":"pau"},null,"pau"]

{"sheet":"Tabela BD - Procurar","index":1,"n_rows":7,"n_cols":13,"rows_kept":7,"cut":false,"hidden":false,"merged":[]}
["MATERIAL",1,2,3,4,5,6,7,8,10,null,"contar","MAX"]
["pão","centeio","arroz","trigo","agua","milho",null,null,null,null,null,{"$f":"COUNTIF('Colocar fórmula'!B:B,'Tabela BD - Procurar'!A2)","v":4},{"$f":"MAX(L2:L7)","v":5}]
["massa","esparguete","rolo","cubos","pevide","pequena","redonda","triangular","quadrada","italiana",null,{"$f":"COUNTIF('Colocar fórmula'!B:B,'Tabela BD - Procurar'!A3)","v":5}]
["arroz","cigala","sucesso","chines","japones","africano",null,null,null,null,null,{"$f":"COUNTIF('Colocar fórmula'!B:B,'Tabela BD - Procurar'!A4)","v":1}]
["fermento","neve","trigo","agua","milho",null,null,null,null,null,null,{"$f":"COUNTIF('Colocar fórmula'!B:B,'Tabela BD - Procurar'!A5)","v":2}]
["ovos","galinha","pato","cordeniz","ganso",null,null,null,null,null,null,{"$f":"COUNTIF('Colocar fórmula'!B:B,'Tabela BD - Procurar'!A6)","v":1}]
["colher","pau","metal",null,null,null,null,null,null,null,null,{"$f":"COUNTIF('Colocar fórmula'!B:B,'Tabela BD - Procurar'!A7)","v":1}]